Workbook

Sheet ابراهيم البدري
B1: حساب / ابراهيم البدري | E1: الإجمالي كله | I1: =SUM(H5:H1048575) -> 258.3333333 | K1: =COUNTIF(A5:A1048575,$A$3 &"*") -> 2
A2: غياب | B2: 8.333333333 | C2: اضفط علي هذا الشخص | E2: سحب | I2: =SUM(L5:L1048575) -> 50 | K2: =COUNTIF(A5:A1048576,$A$2 &"*") -> 1 | L2: سحب يومي
A3: حضور | E3: الحساب صفر | F3: =IF(I3>1,"الباقي إلي "&B1,IF(I3<0,"الباقي علي "&B1,"حساب غير نشط")) -> الباقي إلي حساب / ابراهيم البدري | I3: =I1-I2 -> 208.3333333
A4: الاسم | B4: التاريخ | C4: وقت حضور | D4: وقت الانصراف | E4: مجموع دقيقة | F4: عدد الساعات | G4: سعر الساعة | H4: القيمه | I4: السعر بالتفقيط | J4: وقت الانتهاء | K4: ملحوظة
A5: حضور | B5: 2023-3-09-الخميس | C5: 10:25:00 | D5: 22:25:00 | E5: 720 | F5: 12 | G5: 8.333333333 | H5: 100 | I5: فقط : مائة جنيه فقطُ لا غيرَ | J5: وقت الانتهاء | M5: =IF(L5<>"",IF(M5="",NOW(),M5),"") -> 
A6: غياب | B6: 2023-3-10-الجمعة | C6: 14:27:00 | E6: 0 | G6: 8.333333333 | J6: وقت الانتهاء | L6: 50 | M6: =IF(L6<>"",IF(M6="",NOW(),M6),"") -> 2023-03-10T14:28:05.960
A7: حضور | B7: 2023-3-11-السبت | C7: 03:02:00 | D7: 22:02:00 | E7: =IF(AND(C7="",D7=""),"",IF(AND(C7="",D7<>""),K9,IF(AND(D7="",C7<>""),K7,(D7-C7+(D7<C7))*1440))) -> 1140 | F7: =IF(D7>0,E7/60,"") -> 19 | G7: 8.333333333 | H7: =IF(D7>0,F7*G7,"") -> 158.3333333 | I7: =IF(D7>0, "فقط : " & ArbNum2Text(H7),"") -> فقط : مائة وثمانية وخمسونَ جنيهاً وثلاثة وثلاثونَ قرشاً فقطُ لا غيرَ | J7: وقت الانتهاء | M7: =IF(L7<>"",IF(M7="",NOW(),M7),"") -> 

Sheet باسم عادل
B1: حساب / باسم عادل | E1: الإجمالي كله | I1: =SUM(H5:H1048575) -> 191.7129576 | K1: =COUNTIF(A5:A1048575,$A$3 &"*") -> 5
A2: غياب | B2: 2.7777777 | C2: اضغط علي هذا الشخص | E2: سحب | I2: =SUM(L5:L1048575) -> 70 | K2: =COUNTIF(A5:A1048576,$A$2 &"*") -> 1 | L2: سحب يومي
A3: حضور | E3: الحساب صفر | F3: =IF(I3>1,"الباقي إلي "&B1,IF(I3<0,"الباقي علي "&B1,"حساب غير نشط")) -> الباقي إلي حساب / باسم عادل | I3: =I1-I2 -> 121.7129576
A4: الاسم | B4: التاريخ | C4: وقت حضور | D4: وقت الانصراف | E4: مجموع دقيقة | F4: عدد الساعات | G4: سعر الساعة | H4: القيمه | I4: السعر بالتفقيط | J4: وقت الانتهاء | K4: ملحوظة
A5: حضور | B5: 2023-3-05-الأحد | C5: 10:00:00 | D5: 22:00:00 | E5: 720 | F5: 12 | G5: 2.7777777 | H5: 33.3333324 | I5: فقط : ثلاثة وثلاثونَ جنيهاً وثلاثة وثلاثونَ قرشاً فقطُ لا غيرَ | J5: وقت الانتهاء | M5: =IF(L5<>"",IF(M5="",NOW(),M5),"") -> 
A6: حضور | B6: 2023-3-05-الأحد | C6: 10:00:00 | D6: 22:01:00 | E6: 721 | F6: 12.01666667 | G6: 2.7777777 | H6: 33.37962869 | I6: فقط : ثلاثة وثلاثونَ جنيهاً وثمانية وثلاثونَ قرشاً فقطُ لا غيرَ | J6: وقت الانتهاء
A7: غياب | B7: 2023-3-05-الأحد | C7: 10:01:00 | E7: 0 | G7: 2.7777777 | J7: وقت الانتهاء
A8: حضور | B8: 2023-3-07-الثلاثاء | C8: 09:44:00 | D8: 21:44:00 | E8: 720 | F8: 12 | G8: 2.7777777 | H8: 33.3333324 | I8: فقط : ثلاثة وثلاثونَ جنيهاً وثلاثة وثلاثونَ قرشاً فقطُ لا غيرَ | J8: وقت الانتهاء | L8: 50 | M8: 2023-03-07T09:45:25.750
A9: حضور | B9: 2023-3-09-الخميس | C9: 09:19:00 | D9: 23:19:00 | E9: 840 | F9: 14 | G9: 2.7777777 | H9: 38.8888878 | I9: فقط : ثمانية وثلاثونَ جنيهاً وتسعة وثمانونَ قرشاً فقطُ لا غيرَ | J9: وقت الانتهاء | L9: 20 | M9: 2023-03-09T10:19:52.290
A10: حضور | B10: 2023-3-11-السبت | C10: 03:01:00 | D10: 22:01:00 | E10: 1140 | F10: 19 | G10: 2.7777777 | H10: 52.7777763 | I10: فقط : اثنانِ وخمسونَ جنيهاً وثمانية وسبعونَ قرشاً فقطُ لا غيرَ | J10: وقت الانتهاء
E11: =IF(AND(C11="",D11=""),"",IF(AND(C11="",D11<>""),K13,IF(AND(D11="",C11<>""),K11,(D11-C11+(D11<C11))*1440))) ->  | F11: =IF(D11>0,E11/60,"") ->  | G11: 2.7777777 | J11: وقت الانتهاء

Sheet محمود الشحات
B1: حساب / محمود الشحات | E1: الإجمالي كله | I1: =SUM(H5:H1048575) -> 375 | K1: =COUNTIF(A5:A1048575,$A$3 &"*") -> 2
A2: غياب | B2: 12.5 | C2: اضغط علي هذا الشخص | E2: سحب | I2: =SUM(L5:L1048575) -> 50 | K2: =COUNTIF(A5:A1048576,$A$2 &"*") -> 1 | L2: سحب يومي
A3: حضور | E3: الحساب صفر | F3: =IF(I3>1,"الباقي إلي "&B1,IF(I3<0,"الباقي علي "&B1,"حساب غير نشط")) -> الباقي إلي حساب / محمود الشحات | I3: =I1-I2 -> 325
A4: الاسم | B4: التاريخ | C4: وقت حضور | D4: وقت الانصراف | E4: مجموع دقيقة | F4: عدد الساعات | G4: سعر الساعة | H4: القيمه | I4: السعر بالتفقيط | J4: وقت الانتهاء | K4: ملحوظة
A5: حضور | B5: 2023-3-09-الخميس | C5: 10:23:00 | D5: 22:23:00 | E5: 720 | F5: 12 | G5: 12.5 | H5: 150 | I5: فقط : مائة وخمسونَ جنيهاً فقطُ لا غيرَ | J5: وقت الانتهاء | L5: 50 | M5: =IF(L5<>"",IF(M5="",NOW(),M5),"") -> 2023-03-09T10:23:50.120
A6: غياب | B6: 2023-3-10-الجمعة | C6: 14:27:00 | E6: 0 | G6: 12.5 | J6: وقت الانتهاء | M6: =IF(L6<>"",IF(M6="",NOW(),M6),"") -> 
A7: حضور | B7: 2023-3-11-السبت | C7: 03:59:00 | D7: 21:59:00 | E7: =IF(AND(C7="",D7=""),"",IF(AND(C7="",D7<>""),K9,IF(AND(D7="",C7<>""),K7,(D7-C7+(D7<C7))*1440))) -> 1080 | F7: =IF(D7>0,E7/60,"") -> 18 | G7: 12.5 | H7: =IF(D7>0,F7*G7,"") -> 225 | I7: =IF(D7>0, "فقط : " & ArbNum2Text(H7),"") -> فقط : مائتان وخمسة وعشرونَ جنيهاً فقطُ لا غيرَ | J7: وقت الانتهاء | M7: =IF(L7<>"",IF(M7="",NOW(),M7),"") -> 
E8: =IF(AND(C8="",D8=""),"",IF(AND(C8="",D8<>""),K10,IF(AND(D8="",C8<>""),K8,(D8-C8+(D8<C8))*1440))) ->  | F8: =IF(D8>0,E8/60,"") ->  | G8: 12.5 | J8: وقت الانتهاء | M8: =IF(L8<>"",IF(M8="",NOW(),M8),"") -> 

Sheet محمد ناصر
B1: حساب / محمد ناصر | E1: الإجمالي كله | I1: =SUM(H5:H1048575) -> 458.4722222 | K1: =COUNTIF(A5:A1048575,$A$3 &"*") -> 4
A2: غياب | B2: 8.333333333 | C2: اضغط علي هذا الشخص | E2: سحب | I2: =SUM(L5:L1048575) -> 150 | K2: =COUNTIF(A5:A1048576,$A$2 &"*") -> 2 | L2: سحب يومي
A3: حضور | E3: الحساب صفر | F3: =IF(I3>1,"الباقي إلي "&B1,IF(I3<0,"الباقي علي "&B1,"حساب غير نشط")) -> الباقي إلي حساب / محمد ناصر | I3: =I1-I2 -> 308.4722222
A4: الاسم | B4: التاريخ | C4: وقت حضور | D4: وقت الانصراف | E4: مجموع دقيقة | F4: عدد الساعات | G4: سعر الساعة | H4: القيمه | I4: السعر بالتفقيط | J4: وقت الانتهاء | K4: ملحوظة
A5: حضور | B5: 2023-3-05-الأحد | C5: 10:03:00 | D5: 22:03:00 | E5: 720 | F5: 12 | G5: 8.333333333 | H5: 100 | I5: فقط : مائة جنيه فقطُ لا غيرَ | J5: وقت الانتهاء | M5: =IF(L5<>"",IF(M5="",NOW(),M5),"") -> 
A6: حضور | B6: 2023-3-07-الثلاثاء | C6: 09:46:00 | D6: 21:46:00 | E6: 720 | F6: 12 | G6: 8.333333333 | H6: 100 | I6: فقط : مائة جنيه فقطُ لا غيرَ | J6: وقت الانتهاء | L6: 100 | M6: 2023-03-07T09:46:18.760
A7: غياب | B7: 2023-3-10-الجمعة | C7: 14:28:00 | E7: =IF(AND(C7="",D7=""),"",IF(AND(C7="",D7<>""),K9,IF(AND(D7="",C7<>""),K7,(D7-C7+(D7<C7))*1440))) -> 0 | F7: =IF(D7>0,E7/60,"") ->  | G7: 8.333333333 | H7: =IF(D7>0,F7*G7,"") ->  | I7: =IF(D7>0, "فقط : " & ArbNum2Text(H7),"") ->  | J7: وقت الانتهاء
A8: حضور | B8: 2023-3-09-الخميس | C8: 10:24:00 | D8: 22:25:00 | E8: 721 | F8: 12.01666667 | G8: 8.333333333 | H8: 100.1388889 | I8: فقط : مائة جنيه وأربعة عشر قرشاً فقطُ لا غيرَ | J8: وقت الانتهاء | L8: 50 | M8: 2023-03-09T10:25:14.910
A9: غياب | B9: 2023-3-10-الجمعة | C9: 14:28:00 | E9: 0 | G9: 8.333333333 | J9: وقت الانتهاء
A10: حضور | B10: 2023-3-11-السبت | C10: 03:00:00 | D10: 22:00:00 | E10: =IF(AND(C10="",D10=""),"",IF(AND(C10="",D10<>""),K12,IF(AND(D10="",C10<>""),K10,(D10-C10+(D10<C10))*1440))) -> 1140 | F10: =IF(D10>0,E10/60,"") -> 19 | G10: 8.333333333 | H10: =IF(D10>0,F10*G10,"") -> 158.3333333 | I10: =IF(D10>0, "فقط : " & ArbNum2Text(H10),"") -> فقط : مائة وثمانية وخمسونَ جنيهاً وثلاثة وثلاثونَ قرشاً فقطُ لا غيرَ | J10: وقت الانتهاء

Sheet الرئسية
C1: =TODAY() -> 2023-03-11
G2: ابراهيم البدري | H2: yiyuoiyu
E3: اضغط علي هذا الشخص | G3: باسم عادل | H3: باسم عادل | T3: =ISERROR(FIND("/",T4)) -> TRUE
G4: محمود الشحات | H4: محمود الشحات | T4: محمود الشحات
G5: محمد ناصر | H5: محمد ناصر

Sheet قاعدة_لتصدير
E1: الإجمالي كله | I1: =SUM(H5:H1048575) -> 0 | K1: =COUNTIF(A5:A1048575,$A$3 &"*") -> 0
A2: غياب | B2: 12.5 | C2: اضغط علي هذا الشخص | E2: سحب | I2: =SUM(L5:L1048575) -> 0 | K2: =COUNTIF(A5:A1048576,$A$2 &"*") -> 0 | L2: سحب يومي
A3: حضور | E3: الحساب صفر | F3: =IF(I3>1,"الباقي إلي "&B1,IF(I3<0,"الباقي علي "&B1,"حساب غير نشط")) -> حساب غير نشط | I3: =I1-I2 -> 0
A4: الاسم | B4: التاريخ | C4: وقت حضور | D4: وقت الانصراف | E4: مجموع دقيقة | F4: عدد الساعات | G4: سعر الساعة | H4: القيمه | I4: السعر بالتفقيط | J4: وقت الانتهاء | K4: ملحوظة
E5: =IF(AND(C5="",D5=""),"",IF(AND(C5="",D5<>""),K7,IF(AND(D5="",C5<>""),K5,(D5-C5+(D5<C5))*1440))) ->  | F5: =IF(D5>0,E5/60,"") ->  | G5: 12.5 | J5: وقت الانتهاء | M5: =IF(L5<>"",IF(M5="",NOW(),M5),"") -> 

Sheet شرح_استخدام_البرنامج
A1: 1 | B1: اختار حضور اوغياب من عمود a البرنامج يقوم بإدخال الوقت والتاريخ تلقائي | H1: 1 | I1: وقت الضور
A3: 2 | B3: إضغط Shift + Ctrl + حرف الكاف لإدخال الوقت الحالي | H3: 2 | I3: وقت الانصراف
A5: 3 | B5: في B2 يتم كتابة سعر الساعه المتفق عليها .... مثلاً سعر الساعة 12 جنية يبقي ال 12 ساعة ب 150 جنية
A7: 4 | B7: السحب الليومي للموظف يتم كتابته في عمود L
